[Event "Late-Titled-Tuesday-Blitz-July-09-2024"]
[Site "Chess.com"]
[Date "2024.07.09"]
[Round "3"]
[White "Chessmatus"]
[Black "SuanTiltado"]
[Result "1-0"]
[WhiteElo "2526"]
[BlackElo "2364"]
[TimeControl "180+1"]
[EndTime "14:27:32 PDT"]
[Termination "Chessmatus won by resignation"]

1. e4 {[%clk 0:02:47]} 1... c6 {[%clk 0:02:59.8]} 2. d4 {[%clk 0:02:44.5]} 2...
d5 {[%clk 0:03:00.7]} 3. e5 {[%clk 0:02:44.8]} 3... Bf5 {[%clk 0:03:00.3]} 4.
Bd3 {[%clk 0:02:45.4]} 4... Bxd3 {[%clk 0:02:59.7]} 5. Qxd3 {[%clk 0:02:46.3]}
5... e6 {[%clk 0:03:00.1]} 6. Ne2 {[%clk 0:02:47]} 6... c5 {[%clk 0:02:57]} 7.
c3 {[%clk 0:02:42.9]} 7... Qb6 {[%clk 0:02:55.8]} 8. O-O {[%clk 0:02:42.8]} 8...
Nc6 {[%clk 0:02:56]} 9. Nd2 {[%clk 0:02:43.3]} 9... Nh6 {[%clk 0:02:48]} 10. Nf3
{[%clk 0:02:42.6]} 10... Nf5 {[%clk 0:02:47.7]} 11. Rb1 {[%clk 0:02:40.3]} 11...
h5 {[%clk 0:02:45.5]} 12. Ng3 {[%clk 0:02:31]} 12... Nxg3 {[%clk 0:02:29.4]} 13.
fxg3 {[%clk 0:02:31.9]} 13... cxd4 {[%clk 0:02:28.5]} 14. cxd4 {[%clk
0:02:30.7]} 14... Rc8 {[%clk 0:02:20.9]} 15. a3 {[%clk 0:02:20.8]} 15... Be7
{[%clk 0:01:56.4]} 16. b4 {[%clk 0:02:01.3]} 16... h4 {[%clk 0:01:30.4]} 17.
gxh4 {[%clk 0:01:38.2]} 17... Bxh4 {[%clk 0:01:31.3]} 18. Rb2 {[%clk 0:01:22.9]}
18... Ne7 {[%clk 0:01:01.3]} 19. g3 {[%clk 0:01:20.5]} 19... Bxg3 {[%clk
0:00:52]} 20. hxg3 {[%clk 0:01:19.2]} 20... Nf5 {[%clk 0:00:52.9]} 21. Kg2
{[%clk 0:01:12.2]} 21... Rc4 {[%clk 0:00:46.7]} 22. Rbf2 {[%clk 0:01:09]} 22...
Rf8 {[%clk 0:00:25.4]} 23. g4 {[%clk 0:01:02]} 23... Ne7 {[%clk 0:00:09.6]} 24.
Be3 {[%clk 0:00:59.9]} 24... Nc6 {[%clk 0:00:09]} 25. Nd2 {[%clk 0:00:55]} 25...
Rxd4 {[%clk 0:00:03.9]} 26. Bxd4 {[%clk 0:00:53.9]} 26... Qxd4 {[%clk
0:00:04.8]} 27. Qxd4 {[%clk 0:00:52.8]} 27... Nxd4 {[%clk 0:00:05.7]} 28. Nf3
{[%clk 0:00:52]} 28... Nc6 {[%clk 0:00:04.8]} 29. b5 {[%clk 0:00:50.8]} 29...
Na5 {[%clk 0:00:04.5]} 30. Ng5 {[%clk 0:00:50.5]} 30... Nc4 {[%clk 0:00:05.4]}
1-0

[Event "Late-Titled-Tuesday-Blitz-July-09-2024"]
[Site "Chess.com"]
[Date "2024.07.09"]
[Round "3"]
[White "TigrVShlyape"]
[Black "tgpgoat"]
[Result "1-0"]
[WhiteElo "2961"]
[BlackElo "2507"]
[TimeControl "180+1"]
[EndTime "14:27:38 PDT"]
[Termination "TigrVShlyape won by resignation"]

1. e4 {[%clk 0:03:00.9]} 1... c6 {[%clk 0:02:46.2]} 2. d4 {[%clk 0:02:59]} 2...
d5 {[%clk 0:02:46.6]} 3. exd5 {[%clk 0:02:59.6]} 3... cxd5 {[%clk 0:02:46.7]} 4.
Bd3 {[%clk 0:03:00.2]} 4... Nf6 {[%clk 0:02:45.7]} 5. c3 {[%clk 0:03:00.2]} 5...
g6 {[%clk 0:02:45]} 6. Nf3 {[%clk 0:02:59.6]} 6... Bg7 {[%clk 0:02:45.6]} 7. O-O
{[%clk 0:02:59.7]} 7... O-O {[%clk 0:02:46.2]} 8. Bf4 {[%clk 0:02:58.8]} 8...
Nc6 {[%clk 0:02:46.3]} 9. h3 {[%clk 0:02:57.8]} 9... a6 {[%clk 0:02:40.6]} 10.
Nbd2 {[%clk 0:02:57.1]} 10... Bf5 {[%clk 0:02:39.9]} 11. Bxf5 {[%clk 0:02:56.5]}
11... gxf5 {[%clk 0:02:40.8]} 12. Ne1 {[%clk 0:02:54.3]} 12... b5 {[%clk
0:02:36.1]} 13. a3 {[%clk 0:02:53.3]} 13... e6 {[%clk 0:02:35.5]} 14. Nd3 {[%clk
0:02:53.3]} 14... Ne4 {[%clk 0:02:31.7]} 15. Nf3 {[%clk 0:02:47.7]} 15... Qb6
{[%clk 0:02:16.7]} 16. Nfe5 {[%clk 0:02:46.5]} 16... Nxe5 {[%clk 0:02:15.7]} 17.
Nxe5 {[%clk 0:02:42.9]} 17... Qb7 {[%clk 0:02:08.2]} 18. Nd3 {[%clk 0:02:41.9]}
18... Rfc8 {[%clk 0:02:03.4]} 19. f3 {[%clk 0:02:41]} 19... Nf6 {[%clk
0:02:03.2]} 20. g4 {[%clk 0:02:41]} 20... fxg4 {[%clk 0:01:59.7]} 21. fxg4
{[%clk 0:02:40.8]} 21... Ne4 {[%clk 0:01:58.4]} 22. Qf3 {[%clk 0:02:40.6]} 22...
a5 {[%clk 0:01:51.6]} 23. Rae1 {[%clk 0:02:38.2]} 23... f6 {[%clk 0:01:50.4]}
24. Kh1 {[%clk 0:02:30.9]} 24... Qc6 {[%clk 0:01:47.1]} 25. Re2 {[%clk
0:02:26.3]} 25... Rf8 {[%clk 0:01:40.3]} 26. Bh2 {[%clk 0:02:10.9]} 26... Rae8
{[%clk 0:01:18.1]} 27. Rfe1 {[%clk 0:02:05.4]} 27... Re7 {[%clk 0:00:55.5]} 28.
Nf4 {[%clk 0:01:59.3]} 28... f5 {[%clk 0:00:35.5]} 29. Nh5 {[%clk 0:01:57.2]}
29... fxg4 {[%clk 0:00:35]} 30. Qxg4 {[%clk 0:01:54.1]} 30... Rf5 {[%clk
0:00:30.6]} 31. Bf4 {[%clk 0:01:44.8]} 31... Nf6 {[%clk 0:00:20]} 32. Nxf6+
{[%clk 0:01:40.1]} 32... Rxf6 {[%clk 0:00:20.9]} 33. Rg2 {[%clk 0:01:31.3]}
33... Rg6 {[%clk 0:00:21.1]} 34. Qh5 {[%clk 0:01:29.1]} 34... Qe8 {[%clk
0:00:21]} 35. Rxg6 {[%clk 0:01:28.1]} 35... hxg6 {[%clk 0:00:21.9]} 36. Qg4
{[%clk 0:01:27.6]} 36... e5 {[%clk 0:00:17.7]} 37. dxe5 {[%clk 0:01:25.1]} 37...
Bxe5 {[%clk 0:00:18.6]} 38. Bxe5 {[%clk 0:01:22.3]} 38... Rxe5 {[%clk
0:00:19.5]} 39. Rxe5 {[%clk 0:01:21.5]} 39... Qxe5 {[%clk 0:00:20.4]} 40. Qxg6+
{[%clk 0:01:21.6]} 40... Kh8 {[%clk 0:00:20]} 41. Qd3 {[%clk 0:01:18]} 41... b4
{[%clk 0:00:15.4]} 42. axb4 {[%clk 0:01:16.1]} 42... axb4 {[%clk 0:00:16.3]} 43.
Qd4 {[%clk 0:01:16.4]} 43... Qxd4 {[%clk 0:00:13.4]} 44. cxd4 {[%clk 0:01:16.5]}
44... Kg7 {[%clk 0:00:14.3]} 45. Kg2 {[%clk 0:01:16.5]} 45... Kg6 {[%clk
0:00:14.9]} 46. Kg3 {[%clk 0:01:16.7]} 46... Kf5 {[%clk 0:00:15.3]} 47. h4
{[%clk 0:01:15.3]} 47... Ke4 {[%clk 0:00:15.7]} 48. h5 {[%clk 0:01:14.9]} 48...
Kxd4 {[%clk 0:00:13.1]} 49. h6 {[%clk 0:01:15.3]} 49... Kc4 {[%clk 0:00:13.6]}
50. h7 {[%clk 0:01:15.7]} 50... Kb3 {[%clk 0:00:14]} 51. h8=Q {[%clk 0:01:15.9]}
51... Kc4 {[%clk 0:00:14]} 52. Kf3 {[%clk 0:01:15.3]} 52... d4 {[%clk
0:00:14.9]} 53. Ke4 {[%clk 0:01:15.3]} 53... Kb3 {[%clk 0:00:14.6]} 1-0

[Event "Late-Titled-Tuesday-Blitz-July-09-2024"]
[Site "Chess.com"]
[Date "2024.07.09"]
[Round "3"]
[White "marvinguevara"]
[Black "GilbertoHernandezAmura"]
[Result "0-1"]
[WhiteElo "2071"]
[BlackElo "2517"]
[TimeControl "180+1"]
[EndTime "14:27:38 PDT"]
[Termination "GilbertoHernandezAmura won on time"]

1. e4 {[%clk 0:03:00.9]} 1... e5 {[%clk 0:02:59.7]} 2. Nf3 {[%clk 0:02:58.3]}
2... Nc6 {[%clk 0:03:00.2]} 3. Bc4 {[%clk 0:02:58.2]} 3... Bc5 {[%clk
0:03:00.3]} 4. d3 {[%clk 0:02:54.9]} 4... d6 {[%clk 0:02:54.3]} 5. O-O {[%clk
0:02:49.6]} 5... h6 {[%clk 0:02:53.9]} 6. Nc3 {[%clk 0:02:45.5]} 6... a6 {[%clk
0:02:30.5]} 7. Be3 {[%clk 0:02:28.4]} 7... Ba7 {[%clk 0:02:29.7]} 8. h3 {[%clk
0:02:20.2]} 8... Nf6 {[%clk 0:02:21.4]} 9. Nd5 {[%clk 0:02:04]} 9... Nxd5 {[%clk
0:02:18.4]} 10. Bxd5 {[%clk 0:02:01.9]} 10... Ne7 {[%clk 0:02:16.2]} 11. Bxa7
{[%clk 0:01:56.3]} 11... Rxa7 {[%clk 0:02:17.1]} 12. Bb3 {[%clk 0:01:54.8]}
12... Ng6 {[%clk 0:02:11]} 13. d4 {[%clk 0:01:54.2]} 13... Qe7 {[%clk
0:02:02.5]} 14. dxe5 {[%clk 0:01:48.1]} 14... dxe5 {[%clk 0:02:03.4]} 15. Kh2
{[%clk 0:01:20]} 15... O-O {[%clk 0:02:02]} 16. Qe2 {[%clk 0:01:04.6]} 16... Nf4
{[%clk 0:01:57.7]} 17. Qe3 {[%clk 0:01:03.8]} 17... Ra8 {[%clk 0:01:54.5]} 18.
Rad1 {[%clk 0:00:58.6]} 18... a5 {[%clk 0:01:54.8]} 19. a3 {[%clk 0:00:56.2]}
19... a4 {[%clk 0:01:53.4]} 20. Bc4 {[%clk 0:00:55.5]} 20... Ra5 {[%clk
0:01:40.3]} 21. Rfe1 {[%clk 0:00:53.5]} 21... Rc5 {[%clk 0:01:39]} 22. b3 {[%clk
0:00:46.3]} 22... axb3 {[%clk 0:01:36.2]} 23. cxb3 {[%clk 0:00:44.1]} 23... Rc6
{[%clk 0:01:36.8]} 24. Bf1 {[%clk 0:00:35.3]} 24... Rg6 {[%clk 0:01:26.9]} 25.
g3 {[%clk 0:00:33.5]} 25... Nh5 {[%clk 0:01:19.7]} 26. Rd5 {[%clk 0:00:27.3]}
26... Re6 {[%clk 0:01:19.9]} 27. Qc3 {[%clk 0:00:23.1]} 27... Qf6 {[%clk
0:01:15.5]} 28. Rc1 {[%clk 0:00:12.3]} 28... Rc6 {[%clk 0:01:12]} 29. Rc5 {[%clk
0:00:04.1]} 29... Rxc5 {[%clk 0:01:11.4]} 30. Qxc5 {[%clk 0:00:04.1]} 30... Qxf3
{[%clk 0:01:11.7]} 31. Bg2 {[%clk 0:00:04.5]} 31... Qe2 {[%clk 0:01:03.7]} 32.
Qxc7 {[%clk 0:00:03.8]} 32... Qxf2 {[%clk 0:01:00.1]} 33. Qd6 {[%clk 0:00:02.5]}
33... Qxg3+ {[%clk 0:00:58.5]} 34. Kh1 {[%clk 0:00:01.5]} 34... Bxh3 {[%clk
0:00:57.2]} 35. Bxh3 {[%clk 0:00:01.3]} 35... Qxh3+ {[%clk 0:00:58.1]} 36. Kg1
{[%clk 0:00:02]} 36... Qe3+ {[%clk 0:00:56.8]} 0-1

[Event "Late-Titled-Tuesday-Blitz-July-09-2024"]
[Site "Chess.com"]
[Date "2024.07.09"]
[Round "3"]
[White "Ruprecht_der_Knecht"]
[Black "mind1mover"]
[Result "0-1"]
[WhiteElo "2524"]
[BlackElo "2823"]
[TimeControl "180+1"]
[EndTime "14:27:41 PDT"]
[Termination "mind1mover won by resignation"]

1. c4 {[%clk 0:02:53.5]} 1... f5 {[%clk 0:02:57.1]} 2. Nc3 {[%clk 0:02:51.5]}
2... Nf6 {[%clk 0:02:51.5]} 3. Nf3 {[%clk 0:02:46.1]} 3... e6 {[%clk 0:02:48]}
4. g3 {[%clk 0:02:34.5]} 4... d5 {[%clk 0:02:47.7]} 5. d4 {[%clk 0:02:29.4]}
5... Be7 {[%clk 0:02:44.9]} 6. Bg2 {[%clk 0:02:28.9]} 6... c6 {[%clk 0:02:41.2]}
7. Ne5 {[%clk 0:02:22.1]} 7... Ne4 {[%clk 0:02:35.8]} 8. O-O {[%clk 0:02:17.9]}
8... Nd7 {[%clk 0:02:33.6]} 9. cxd5 {[%clk 0:02:11.4]} 9... exd5 {[%clk
0:02:31.7]} 10. Bf4 {[%clk 0:02:05.9]} 10... O-O {[%clk 0:02:28.4]} 11. e3
{[%clk 0:01:58.2]} 11... Nb6 {[%clk 0:02:10.6]} 12. h4 {[%clk 0:01:52.6]} 12...
Be6 {[%clk 0:02:08.2]} 13. Nd3 {[%clk 0:01:42.7]} 13... Qe8 {[%clk 0:01:57.4]}
14. Rc1 {[%clk 0:01:41.1]} 14... h6 {[%clk 0:01:52.9]} 15. Be5 {[%clk
0:00:42.3]} 15... g5 {[%clk 0:01:47.2]} 16. hxg5 {[%clk 0:00:42.5]} 16... hxg5
{[%clk 0:01:48.1]} 17. f3 {[%clk 0:00:39.4]} 17... Nxc3 {[%clk 0:01:34.1]} 18.
Rxc3 {[%clk 0:00:40.3]} 18... Nd7 {[%clk 0:01:27.7]} 19. Kf2 {[%clk 0:00:40]}
19... Nxe5 {[%clk 0:01:06.3]} 20. Nxe5 {[%clk 0:00:40.9]} 20... f4 {[%clk
0:01:00.9]} 21. Rh1 {[%clk 0:00:24.9]} 21... fxg3+ {[%clk 0:00:45]} 22. Kxg3
{[%clk 0:00:24.7]} 22... Bd6 {[%clk 0:00:40.7]} 23. Qd3 {[%clk 0:00:24.3]} 23...
Bf5 {[%clk 0:00:38.3]} 24. e4 {[%clk 0:00:16.3]} 24... Bxe5+ {[%clk 0:00:38]}
25. dxe5 {[%clk 0:00:16.2]} 25... Qxe5+ {[%clk 0:00:38.9]} 26. Kf2 {[%clk
0:00:15.8]} 26... Bxe4 {[%clk 0:00:29.4]} 27. Qe3 {[%clk 0:00:16.3]} 27... d4
{[%clk 0:00:24.3]} 0-1

[Event "Late-Titled-Tuesday-Blitz-July-09-2024"]
[Site "Chess.com"]
[Date "2024.07.09"]
[Round "3"]
[White "VacheH009"]
[Black "JAN2404"]
[Result "1-0"]
[WhiteElo "2518"]
[BlackElo "2084"]
[TimeControl "180+1"]
[EndTime "14:27:42 PDT"]
[Termination "VacheH009 won on time"]

1. e4 {[%clk 0:03:00.9]} 1... c5 {[%clk 0:02:59.6]} 2. Nf3 {[%clk 0:02:58.8]}
2... d6 {[%clk 0:03:00]} 3. Nc3 {[%clk 0:02:53.9]} 3... Nc6 {[%clk 0:02:57.9]}
4. d4 {[%clk 0:02:52.8]} 4... cxd4 {[%clk 0:02:58]} 5. Nxd4 {[%clk 0:02:53.6]}
5... Nf6 {[%clk 0:02:58.4]} 6. f3 {[%clk 0:02:53.9]} 6... e5 {[%clk 0:02:56.9]}
7. Nb3 {[%clk 0:02:53.4]} 7... Be6 {[%clk 0:02:57.5]} 8. Be3 {[%clk 0:02:52]}
8... d5 {[%clk 0:02:56]} 9. exd5 {[%clk 0:02:52.9]} 9... Nxd5 {[%clk 0:02:55]}
10. Nxd5 {[%clk 0:02:53.2]} 10... Qxd5 {[%clk 0:02:55.3]} 11. Qxd5 {[%clk
0:02:53.6]} 11... Bxd5 {[%clk 0:02:55.5]} 12. c3 {[%clk 0:02:54.3]} 12... O-O-O
{[%clk 0:02:51.5]} 13. O-O-O {[%clk 0:02:54.1]} 13... Be7 {[%clk 0:02:35.6]} 14.
Bd3 {[%clk 0:02:46.7]} 14... Be6 {[%clk 0:02:30.7]} 15. Be4 {[%clk 0:02:45.8]}
15... Kc7 {[%clk 0:02:16]} 16. g4 {[%clk 0:02:41.5]} 16... b6 {[%clk 0:02:07.1]}
17. h4 {[%clk 0:02:37.6]} 17... h5 {[%clk 0:02:05.6]} 18. g5 {[%clk 0:02:35]}
18... g6 {[%clk 0:02:03.5]} 19. f4 {[%clk 0:02:29.3]} 19... Bd6 {[%clk
0:01:57.3]} 20. Rdf1 {[%clk 0:02:11.9]} 20... Bc4 {[%clk 0:01:44]} 21. Rf2
{[%clk 0:02:03.3]} 21... Rhe8 {[%clk 0:01:44.2]} 22. f5 {[%clk 0:02:02.8]} 22...
gxf5 {[%clk 0:01:22.9]} 23. Rxf5 {[%clk 0:02:03.7]} 23... a5 {[%clk 0:01:18.8]}
24. Kb1 {[%clk 0:01:47.7]} 24... Rd7 {[%clk 0:01:03.4]} 25. Nd2 {[%clk 0:01:43]}
25... Be6 {[%clk 0:01:02.4]} 26. Rf2 {[%clk 0:01:38.1]} 26... a4 {[%clk
0:00:57.8]} 27. Rhf1 {[%clk 0:01:31.8]} 27... a3 {[%clk 0:00:51.7]} 28. b4
{[%clk 0:01:30.1]} 28... Bh3 {[%clk 0:00:37.3]} 29. Rc1 {[%clk 0:01:26.3]} 29...
Na7 {[%clk 0:00:22.9]} 30. Nc4 {[%clk 0:01:21.7]} 30... Be6 {[%clk 0:00:21]} 31.
Nxb6 {[%clk 0:01:18.2]} 31... Rdd8 {[%clk 0:00:15.5]} 32. Nd5+ {[%clk
0:01:18.6]} 32... Bxd5 {[%clk 0:00:09.6]} 33. Bxd5 {[%clk 0:01:19.5]} 33... Nb5
{[%clk 0:00:09.4]} 34. Rxf7+ {[%clk 0:01:18.8]} 34... Be7 {[%clk 0:00:07.8]} 35.
c4 {[%clk 0:01:10.3]} 35... Nd4 {[%clk 0:00:05.7]} 36. Bxd4 {[%clk 0:01:09.8]}
36... exd4 {[%clk 0:00:05.8]} 37. Re1 {[%clk 0:01:10.7]} 37... Rd7 {[%clk
0:00:05.9]} 38. Kc2 {[%clk 0:01:07.1]} 38... Kd6 {[%clk 0:00:05.8]} 39. Re6+
{[%clk 0:01:06.1]} 39... Kc7 {[%clk 0:00:05]} 40. Kd3 {[%clk 0:01:07]} 40... Kd8
{[%clk 0:00:03.9]} 41. Bc6 {[%clk 0:01:05.1]} 1-0

[Event "Late-Titled-Tuesday-Blitz-July-09-2024"]
[Site "Chess.com"]
[Date "2024.07.09"]
[Round "3"]
[White "chessuriel"]
[Black "Redzishchess"]
[Result "0-1"]
[WhiteElo "2270"]
[BlackElo "2468"]
[TimeControl "180+1"]
[EndTime "14:27:42 PDT"]
[Termination "Redzishchess won by resignation"]

1. e4 {[%clk 0:03:00]} 1... c5 {[%clk 0:02:59.5]} 2. Nf3 {[%clk 0:02:58]} 2...
d6 {[%clk 0:03:00]} 3. Bb5+ {[%clk 0:02:57.2]} 3... Bd7 {[%clk 0:02:59.8]} 4.
Bxd7+ {[%clk 0:02:57.2]} 4... Nxd7 {[%clk 0:02:58.8]} 5. b3 {[%clk 0:02:54.8]}
5... e5 {[%clk 0:02:55.7]} 6. O-O {[%clk 0:02:52.4]} 6... g6 {[%clk 0:02:55.4]}
7. c3 {[%clk 0:02:35.9]} 7... Bg7 {[%clk 0:02:55.7]} 8. Bb2 {[%clk 0:02:35.2]}
8... Ne7 {[%clk 0:02:52.7]} 9. Na3 {[%clk 0:02:34.3]} 9... O-O {[%clk
0:02:52.6]} 10. Nc2 {[%clk 0:02:32.9]} 10... f5 {[%clk 0:02:50.9]} 11. Ng5
{[%clk 0:02:26]} 11... Rf6 {[%clk 0:02:46.3]} 12. d4 {[%clk 0:02:13.7]} 12... h6
{[%clk 0:02:40.5]} 13. dxe5 {[%clk 0:02:10.6]} 13... dxe5 {[%clk 0:02:02.6]} 14.
Nf3 {[%clk 0:02:03.7]} 14... fxe4 {[%clk 0:02:02.5]} 15. Nd2 {[%clk 0:02:04.2]}
15... Rd6 {[%clk 0:02:02.8]} 16. Qe2 {[%clk 0:02:02.8]} 16... Nf6 {[%clk
0:01:54]} 17. Nc4 {[%clk 0:01:50.3]} 17... Re6 {[%clk 0:01:46.5]} 18. Rad1
{[%clk 0:01:42.2]} 18... Qc7 {[%clk 0:01:45.5]} 19. a4 {[%clk 0:01:37.1]} 19...
Nf5 {[%clk 0:01:40.8]} 20. N2e3 {[%clk 0:01:30.3]} 20... Rf8 {[%clk 0:01:17.7]}
21. Nd5 {[%clk 0:01:23.3]} 21... Nxd5 {[%clk 0:01:16.8]} 22. Rxd5 {[%clk
0:01:24.2]} 22... Qc6 {[%clk 0:00:38.8]} 23. Rfd1 {[%clk 0:01:19.6]} 23... Nd4
{[%clk 0:00:34.1]} 24. Qxe4 {[%clk 0:00:57.8]} 24... Kh7 {[%clk 0:00:28.4]} 25.
Na5 {[%clk 0:00:35.3]} 25... Qa6 {[%clk 0:00:15.7]} 26. cxd4 {[%clk 0:00:32.3]}
26... exd4 {[%clk 0:00:16.1]} 27. Qd3 {[%clk 0:00:27.5]} 27... Qxd3 {[%clk
0:00:14.3]} 0-1

[Event "Late-Titled-Tuesday-Blitz-July-09-2024"]
[Site "Chess.com"]
[Date "2024.07.09"]
[Round "3"]
[White "toninhojit"]
[Black "RebecaJimnz"]
[Result "0-1"]
[WhiteElo "2490"]
[BlackElo "2299"]
[TimeControl "180+1"]
[EndTime "14:27:44 PDT"]
[Termination "RebecaJimnz won by resignation"]

1. d4 {[%clk 0:03:00.9]} 1... d5 {[%clk 0:02:59.7]} 2. c4 {[%clk 0:03:00.8]}
2... c6 {[%clk 0:03:00.1]} 3. Nf3 {[%clk 0:02:53.1]} 3... Nf6 {[%clk 0:03:00]}
4. e3 {[%clk 0:02:52.9]} 4... e6 {[%clk 0:03:00.3]} 5. Be2 {[%clk 0:02:51.7]}
5... dxc4 {[%clk 0:03:00]} 6. a4 {[%clk 0:02:50.9]} 6... Nbd7 {[%clk 0:03:00.3]}
7. Nbd2 {[%clk 0:02:50.6]} 7... b5 {[%clk 0:02:57.6]} 8. O-O {[%clk 0:02:30.9]}
8... Be7 {[%clk 0:02:57.3]} 9. Qc2 {[%clk 0:02:22.2]} 9... Bb7 {[%clk
0:02:56.5]} 10. b3 {[%clk 0:02:16.1]} 10... cxb3 {[%clk 0:02:53.3]} 11. Nxb3
{[%clk 0:02:17]} 11... Rc8 {[%clk 0:02:45.7]} 12. Qb1 {[%clk 0:02:07.6]} 12...
a6 {[%clk 0:02:42.2]} 13. Rd1 {[%clk 0:02:07.8]} 13... O-O {[%clk 0:02:38.5]}
14. Ba3 {[%clk 0:02:03]} 14... b4 {[%clk 0:02:30.2]} 15. Bb2 {[%clk 0:02:03.1]}
15... a5 {[%clk 0:02:25.4]} 16. Ne5 {[%clk 0:01:54.6]} 16... Qb6 {[%clk
0:02:17.5]} 17. Nc4 {[%clk 0:01:54.2]} 17... Qa7 {[%clk 0:02:12.6]} 18. Ncxa5
{[%clk 0:01:54.3]} 18... Ba8 {[%clk 0:02:09.2]} 19. Rc1 {[%clk 0:01:45.4]} 19...
c5 {[%clk 0:02:04.1]} 20. dxc5 {[%clk 0:01:44.5]} 20... Nxc5 {[%clk 0:02:04]}
21. Nxc5 {[%clk 0:01:43.7]} 21... Rxc5 {[%clk 0:02:04]} 22. Nb3 {[%clk
0:01:40.4]} 22... Rg5 {[%clk 0:01:58.7]} 23. Bf1 {[%clk 0:01:25.9]} 23... Qb7
{[%clk 0:01:47.9]} 24. e4 {[%clk 0:01:08.1]} 24... Nxe4 {[%clk 0:01:42.5]} 25.
f3 {[%clk 0:00:46.6]} 25... Nc3 {[%clk 0:01:17.4]} 26. Qd3 {[%clk 0:00:40.9]}
26... Qxf3 {[%clk 0:01:06.5]} 27. Qxf3 {[%clk 0:00:39.9]} 27... Bxf3 {[%clk
0:01:07.4]} 28. Bxc3 {[%clk 0:00:34.5]} 28... bxc3 {[%clk 0:01:07.6]} 29. a5
{[%clk 0:00:31.6]} 29... Bd5 {[%clk 0:01:02.4]} 30. Rab1 {[%clk 0:00:18]} 30...
c2 {[%clk 0:00:55.3]} 31. Rxc2 {[%clk 0:00:13.1]} 31... Be4 {[%clk 0:00:55]} 32.
Rbb2 {[%clk 0:00:11.8]} 32... Bxc2 {[%clk 0:00:54.4]} 33. Rxc2 {[%clk
0:00:12.7]} 33... Rb8 {[%clk 0:00:45]} 34. Nc5 {[%clk 0:00:07.4]} 34... Rxc5
{[%clk 0:00:43]} 0-1

[Event "Late-Titled-Tuesday-Blitz-July-09-2024"]
[Site "Chess.com"]
[Date "2024.07.09"]
[Round "3"]
[White "Sanyura"]
[Black "mbojan"]
[Result "0-1"]
[WhiteElo "2689"]
[BlackElo "2926"]
[TimeControl "180+1"]
[EndTime "14:27:46 PDT"]
[Termination "mbojan won on time"]

1. Nf3 {[%clk 0:02:38.2]} 1... g6 {[%clk 0:02:58]} 2. g3 {[%clk 0:02:37.8]} 2...
Bg7 {[%clk 0:02:58.1]} 3. Bg2 {[%clk 0:02:38.5]} 3... d6 {[%clk 0:02:58.7]} 4.
O-O {[%clk 0:02:39.1]} 4... Bd7 {[%clk 0:02:58.8]} 5. d3 {[%clk 0:02:39.8]} 5...
Qc8 {[%clk 0:02:59.1]} 6. e4 {[%clk 0:02:39.8]} 6... Bh3 {[%clk 0:02:58.3]} 7.
Nc3 {[%clk 0:02:40]} 7... h5 {[%clk 0:02:58.4]} 8. Nd5 {[%clk 0:02:40]} 8...
Bxg2 {[%clk 0:02:54.6]} 9. Kxg2 {[%clk 0:02:39.9]} 9... c6 {[%clk 0:02:54.7]}
10. Nf4 {[%clk 0:02:30.6]} 10... Nd7 {[%clk 0:02:54.4]} 11. c3 {[%clk
0:02:29.2]} 11... e5 {[%clk 0:02:44.8]} 12. Ne2 {[%clk 0:02:28.6]} 12... Ngf6
{[%clk 0:02:42.8]} 13. Bg5 {[%clk 0:02:27.2]} 13... O-O {[%clk 0:02:42.3]} 14.
Qd2 {[%clk 0:02:26.8]} 14... d5 {[%clk 0:02:41.6]} 15. exd5 {[%clk 0:02:09]}
15... cxd5 {[%clk 0:02:42.5]} 16. Rfe1 {[%clk 0:02:08.7]} 16... Re8 {[%clk
0:02:42.5]} 17. Bh6 {[%clk 0:02:06.6]} 17... Bh8 {[%clk 0:02:42]} 18. Rad1
{[%clk 0:02:02.5]} 18... Qc6 {[%clk 0:02:42]} 19. b3 {[%clk 0:01:58]} 19... Ng4
{[%clk 0:02:41.9]} 20. h3 {[%clk 0:01:56.6]} 20... Nxh6 {[%clk 0:02:29.9]} 21.
Qxh6 {[%clk 0:01:57.5]} 21... Bg7 {[%clk 0:02:30.4]} 22. Qg5 {[%clk 0:01:52.4]}
22... Rac8 {[%clk 0:02:25.5]} 23. c4 {[%clk 0:01:28.6]} 23... d4 {[%clk
0:02:25.1]} 24. Ng1 {[%clk 0:01:17.8]} 24... Re6 {[%clk 0:02:24.6]} 25. Kh2
{[%clk 0:01:10.8]} 25... Rce8 {[%clk 0:02:23.4]} 26. Qd2 {[%clk 0:01:08]} 26...
b6 {[%clk 0:02:10.6]} 27. Qe2 {[%clk 0:01:07.5]} 27... Bh6 {[%clk 0:02:05]} 28.
Nd2 {[%clk 0:01:04.2]} 28... a5 {[%clk 0:02:01.4]} 29. a3 {[%clk 0:00:52.7]}
29... Nc5 {[%clk 0:02:00.8]} 30. b4 {[%clk 0:00:52.4]} 30... axb4 {[%clk
0:02:01.7]} 31. axb4 {[%clk 0:00:53.3]} 31... Na4 {[%clk 0:02:02.4]} 32. Nb1
{[%clk 0:00:23.6]} 32... Nc3 {[%clk 0:01:41.8]} 33. Nxc3 {[%clk 0:00:19.6]}
33... dxc3 {[%clk 0:01:42.7]} 34. Ra1 {[%clk 0:00:16.5]} 34... Bd2 {[%clk
0:01:37.9]} 35. Rf1 {[%clk 0:00:15.8]} 35... e4 {[%clk 0:01:36.3]} 36. d4 {[%clk
0:00:15.3]} 36... Qc7 {[%clk 0:01:36.6]} 37. d5 {[%clk 0:00:15]} 37... R6e7
{[%clk 0:01:36.8]} 38. h4 {[%clk 0:00:12.4]} 38... e3 {[%clk 0:01:35.1]} 39. f4
{[%clk 0:00:11.6]} 39... c2 {[%clk 0:01:35.7]} 40. Nf3 {[%clk 0:00:11.4]} 40...
Re4 {[%clk 0:01:32.9]} 41. c5 {[%clk 0:00:04.7]} 41... bxc5 {[%clk 0:01:31.8]}
42. b5 {[%clk 0:00:05]} 42... c1=Q {[%clk 0:01:17.8]} 43. Raxc1 {[%clk
0:00:04.6]} 43... Bxc1 {[%clk 0:01:18.7]} 44. Rxc1 {[%clk 0:00:05.1]} 44... Rb4
{[%clk 0:01:19.5]} 45. Ne5 {[%clk 0:00:02.4]} 45... Qd6 {[%clk 0:01:14.1]} 46.
Nc4 {[%clk 0:00:01.2]} 46... Qxd5 {[%clk 0:01:13.6]} 0-1